[Event "FIDE World Cadets GU12 2022"]
[Site "Batumi"]
[Date "2022.09.21"]
[Round "6.5"]
[White "Kholyavko, Mariya"]
[Black "Maklakova, Naomi"]
[Result "1-0"]
[ECO "C45"]
[WhiteElo "1421"]
[BlackElo "1635"]
[Annotator "NA RC COMBH"]
[PlyCount "111"]
[EventDate "2022.09.16"]
[EventType "swiss"]
[EventCountry "GEO"]
[SourceTitle "playchess.com"]
[Source "ChessBase"]
[SourceQuality "1"]
[TimeControl "5400+30"]

1. e4 {[%emt 0:01:00]} e5 {[%emt 0:01:00]} 2. Nf3 {[%emt 0:00:30]} Nc6 {[%emt 0:00:30]} 3. d4 {[%emt 0:00:30]} exd4 {[%emt 0:00:30]} 4. Nxd4 {[%emt 0:00:00]} Nf6 {[%emt 0:01:30]} 5. Nxc6 {[%emt 0:00:00]} bxc6 {[%emt 0:00:30]} 6. e5 {[%emt 0:00:00]} Qe7 {[%emt 0:00:30]} 7. Qe2 {[%emt 0:00:00]} Nd5 {[%emt 0:00:30]} 8. c4 {[%emt 0:00:30]} Ba6 {[%emt 0:00:30]} 9. b3 {[%emt 0:00:00]} g6 {[%emt 0:00:00]} 10. f4 {[%emt 0:00:00]} Bg7 {[%emt 0:00:00]} 11. Qf2 {[%emt 0:00:00]} Nf6 {[%emt 0:05:30]} 12. Be2 {[%emt 0:00:00]} Ne4 {[%emt 0:01:30]} 13. Qe3 {[%emt 0:01:30]} Nd6 {[%emt 0:09:30]} 14. Nd2 {[%emt 0:07:30]} Nf5 {[%emt 0:06:30]} 15. Qf2 {[%emt 0:01:30]} c5 {[%emt 0:09:30]} 16. Bb2 {[%emt 0:03:30]} Bb7 {[%emt 0:02:30]} 17. O-O {[%emt 0:01:30]} O-O {[%emt 0:00:30]} 18. Bf3 {[%emt 0:05:30]} Bxf3 {[%emt 0:05:30]} 19. Qxf3 {[%emt 0:00:30]} Nd4 {[%emt 0:03:30]} 20. Bxd4 {[%emt 0:03:30]} cxd4 {[%emt 0:00:30]} 21. Qd5 {[%emt 0:00:00]} d6 {[%emt 0:04:30]} 22. Qxd4 {[%emt 0:02:00]} dxe5 {[%emt 0:02:30]} 23. Qe3 {[%emt 0:00:00]} Qd6 {[%emt 0:22:30]} 24. Ne4 {[%emt 0:02:00]} exf4 {[%emt 0:00:30]} 25. Qf3 {[%emt 0:02:30]} Qe7 {[%emt 0:05:48]} 26. Rad1 {[%emt 0:05:30]} Rae8 {[%emt 0:01:01]} 27. Rfe1 {[%emt 0:02:30]} f5 {[%emt 0:03:05]} 28. Nc3 {[%emt 0:00:30]} Qb4 {[%emt 0:07:49]} 29. Rxe8 {[%emt 0:03:30]} Rxe8 {[%emt 0:00:30]} 30. Ne2 {[%emt 0:00:00]} Qc5+ {[%emt 0:01:49]} 31. Kf1 {[%emt 0:00:00]} Qe3 {[%emt 0:02:06]} 32. Nxf4 {[%emt 0:03:30]} Qxf3+ {[%emt 0:00:30]} 33. gxf3 {[%emt 0:00:30]} Re3 {[%emt 0:00:23]} 34. Kf2 {[%emt 0:00:30]} Rc3 {[%emt 0:00:40]} 35. Rd8+ {[%emt 0:00:30]} Kf7 {[%emt 0:00:18]} 36. Rd7+ {[%emt 0:00:30]} Kg8 {[%emt 0:01:04]} 37. Rxc7 {[%emt 0:00:30]} Rc2+ {[%emt 0:00:30]} 38. Kf1 {[%emt 0:00:30]} Be5 {[%emt 0:00:30]} 39. Rc8+ {[%emt 0:00:30]} Kf7 {[%emt 0:00:30]} 40. Nd5 {[%emt 0:00:30]} Rxa2 {[%emt 0:01:20]} 41. f4 {[%emt 0:05:30]} Bd6 {[%emt 0:01:02]} 42. c5 {[%emt 0:00:30]} Rc2 {[%emt 0:00:30]} 43. Rc6 {[%emt 0:00:00]} Bxc5 {[%emt 0:01:14]} 44. b4 {[%emt 0:00:00]} Rc1+ {[%emt 0:00:30]} 45. Ke2 {[%emt 0:00:30]} Be3 {[%emt 0:00:30]} 46. Rf6+ {[%emt 0:00:30]} Kg7 {[%emt 0:00:30]} 47. Kxe3 {[%emt 0:00:00]} Rh1 {[%emt 0:00:00]} 48. Ra6 {[%emt 0:00:00]} Rxh2 {[%emt 0:00:00]} 49. Rxa7+ {[%emt 0:00:30]} Kf8 {[%emt 0:00:00]} 50. b5 {[%emt 0:01:30]} Rb2 {[%emt 0:00:13]} 51. b6 {[%emt 0:00:30]} h5 {[%emt 0:00:30]} 52. b7 {[%emt 0:00:00]} h4 {[%emt 0:00:00]} 53. Ra8+ {[%emt 0:00:00]} Kg7 {[%emt 0:00:17]} 54. b8=Q {[%emt 0:00:30]} Rxb8 {[%emt 0:00:30]} 55. Rxb8 {[%emt 0:00:30]} h3 {[%emt 0:00:30]} 56. Kf3 {[%emt 0:00:30]} 1-0

[Event "FIDE World Cadets GU12 2022"]
[Site "Batumi"]
[Date "2022.09.21"]
[Round "6.6"]
[White "Yousefian, Maedeh"]
[Black "Saparya Ghosh"]
[Result "1-0"]
[ECO "C28"]
[WhiteElo "1765"]
[BlackElo "1563"]
[Annotator "NA RC COMBH"]
[PlyCount "94"]
[EventDate "2022.09.16"]
[EventType "swiss"]
[EventCountry "GEO"]
[SourceTitle "playchess.com"]
[Source "ChessBase"]
[SourceQuality "1"]
[TimeControl "5400+30"]

1. e4 {[%emt 0:01:00]} e5 {[%emt 0:02:00]} 2. Bc4 {[%emt 0:00:00]} Nf6 {[%emt 0:00:00]} 3. Nc3 {[%emt 0:01:00]} Nc6 {[%emt 0:00:00]} 4. d3 {[%emt 0:00:30]} Na5 {[%emt 0:00:30]} 5. Bb3 {[%emt 0:00:00]} Nxb3 {[%emt 0:01:30]} 6. axb3 {[%emt 0:00:00]} d5 {[%emt 0:16:30]} 7. exd5 {[%emt 0:00:30]} Nxd5 {[%emt 0:00:30]} 8. Qh5 {[%emt 0:15:30]} Qd6 {[%emt 0:12:30]} 9. Ne4 {[%emt 0:19:30]} Qe6 {[%emt 0:05:30]} 10. Bd2 {[%emt 0:16:30]} Bb4 {[%emt 0:09:30]} 11. c3 {[%emt 0:07:30]} Bd6 {[%emt 0:02:30]} 12. Ne2 {[%emt 0:00:30]} Nf6 {[%emt 0:02:30]} 13. Nxf6+ {[%emt 0:00:30]} Qxf6 {[%emt 0:01:30]} 14. b4 {[%emt 0:05:30]} Qf5 {[%emt 0:05:30]} 15. Qxf5 {[%emt 0:00:30]} Bxf5 {[%emt 0:00:30]} 16. d4 {[%emt 0:00:30]} O-O {[%emt 0:02:30]} 17. Be3 {[%emt 0:02:30]} Bd3 {[%emt 0:02:30]} 18. Kd2 {[%emt 0:03:30]} Bc4 {[%emt 0:00:30]} 19. Rhe1 {[%emt 0:03:30]} Rfd8 {[%emt 0:01:30]} 20. Kc2 {[%emt 0:03:23]} exd4 {[%emt 0:06:30]} 21. Nxd4 {[%emt 0:00:30]} c5 {[%emt 0:04:30]} 22. bxc5 {[%emt 0:04:13]} Bxc5 {[%emt 0:00:30]} 23. Nf3 {[%emt 0:01:20]} Bd3+ 24. Kb3 {[%emt 0:00:14]} Bxe3 {[%emt 0:05:56]} 25. Rxe3 {[%emt 0:00:01]} a6 {[%emt 0:02:09]} 26. Re7 {[%emt 0:03:56]} Rab8 {[%emt 0:04:46]} 27. Rae1 {[%emt 0:00:45]} Kf8 {[%emt 0:02:09]} 28. Rc7 {[%emt 0:06:08]} Rdc8 {[%emt 0:04:22]} 29. Ree7 {[%emt 0:00:11]} Rxc7 {[%emt 0:00:58]} 30. Rxc7 {[%emt 0:00:01]} Be4 {[%emt 0:01:35]} 31. Ne5 {[%emt 0:01:13]} Bd5+ {[%emt 0:00:53]} 32. c4 {[%emt 0:00:30]} Be6 {[%emt 0:00:00]} 33. Nd7+ {[%emt 0:03:01]} Bxd7 {[%emt 0:00:05]} 34. Rxd7 {[%emt 0:00:01]} b5 {[%emt 0:01:49]} 35. c5 {[%emt 0:01:07]} a5 {[%emt 0:00:38]} 36. Kc3 {[%emt 0:01:25]} Ke8 {[%emt 0:02:15]} 37. Ra7 {[%emt 0:00:31]} Rc8 {[%emt 0:01:39]} 38. Kd4 {[%emt 0:00:30]} Rd8+ {[%emt 0:00:30]} 39. Ke5 {[%emt 0:00:00]} Rd2 {[%emt 0:00:00]} 40. c6 {[%emt 0:00:14]} Rxb2 {[%emt 0:00:19]} 41. Kd6 {[%emt 0:00:49]} Rd2+ {[%emt 0:00:17]} 42. Kc7 {[%emt 0:00:55]} a4 {[%emt 0:01:12]} 43. Kb8 {[%emt 0:00:56]} Rd8+ {[%emt 0:00:42]} 44. Kb7 {[%emt 0:00:30]} b4 {[%emt 0:00:30]} 45. Rxa4 {[%emt 0:00:06]} b3 {[%emt 0:00:11]} 46. c7 {[%emt 0:01:05]} Rd7 {[%emt 0:00:17]} 47. Kc6 {[%emt 0:00:32]} b2 {[%emt 0:00:40]} 1-0

[Event "FIDE World Cadets GU12 2022"]
[Site "Batumi"]
[Date "2022.09.21"]
[Round "6.7"]
[White "Goriachkina, Oksana"]
[Black "Vizcarra Quispe, Ramalia Bellaluz"]
[Result "1-0"]
[ECO "E14"]
[WhiteElo "1748"]
[BlackElo "1429"]
[Annotator "NA RC COMBH"]
[PlyCount "43"]
[EventDate "2022.09.16"]
[EventType "swiss"]
[EventCountry "GEO"]
[SourceTitle "playchess.com"]
[Source "ChessBase"]
[SourceQuality "1"]
[TimeControl "5400+30"]

1. d4 {[%emt 0:01:00]} d5 {[%emt 0:01:00]} 2. c4 {[%emt 0:00:30]} c5 {[%emt 0:00:00]} 3. e3 {[%emt 0:02:30]} Nf6 {[%emt 0:00:00]} 4. Nf3 {[%emt 0:00:30]} e6 {[%emt 0:03:30]} 5. Nc3 {[%emt 0:01:30]} Be7 {[%emt 0:01:30]} 6. Be2 {[%emt 0:01:30]} O-O {[%emt 0:00:30]} 7. O-O {[%emt 0:00:30]} b6 {[%emt 0:01:30]} 8. b3 {[%emt 0:01:30]} Bb7 {[%emt 0:01:30]} 9. Bb2 {[%emt 0:02:30]} Nbd7 {[%emt 0:00:30]} 10. Rc1 {[%emt 0:08:30]} a6 {[%emt 0:07:30]} 11. cxd5 {[%emt 0:13:30]} exd5 {[%emt 0:01:30]} 12. Ne5 {[%emt 0:06:30]} Ne4 {[%emt 0:16:30]} 13. Nxe4 {[%emt 0:06:30]} dxe4 {[%emt 0:00:30]} 14. Nxd7 {[%emt 0:02:30]} Qxd7 {[%emt 0:00:30]} 15. dxc5 {[%emt 0:05:30]} Qxd1 {[%emt 0:00:30]} 16. Rfxd1 {[%emt 0:00:30]} Bxc5 {[%emt 0:00:30]} 17. Bd4 {[%emt 0:00:30]} Bxd4 {[%emt 0:00:30]} 18. Rxd4 {[%emt 0:01:30]} Rfd8 {[%emt 0:00:30]} 19. Rxd8+ {[%emt 0:00:30]} Rxd8 {[%emt 0:00:30]} 20. Rc7 {[%emt 0:00:30]} Rc8 {[%emt 0:02:30]} 21. Rxb7 {[%emt 0:00:30]} Rc1+ {[%emt 0:04:30]} 22. Bf1 {[%emt 0:00:30]} 1-0

[Event "FIDE World Cadets GU12 2022"]
[Site "Batumi"]
[Date "2022.09.21"]
[Round "6.8"]
[White "Altynbek, Aiaru"]
[Black "Huseynova, Lala"]
[Result "1-0"]
[ECO "E08"]
[WhiteElo "1373"]
[BlackElo "1702"]
[Annotator "NA RC COMBH"]
[PlyCount "72"]
[EventDate "2022.09.16"]
[EventType "swiss"]
[EventCountry "GEO"]
[SourceTitle "playchess.com"]
[Source "ChessBase"]
[SourceQuality "1"]
[TimeControl "5400+30"]

1. d4 {[%emt 0:01:00]} d5 {[%emt 0:01:00]} 2. c4 {[%emt 0:00:00]} e6 {[%emt 0:00:30]} 3. Nf3 {[%emt 0:00:00]} Nf6 {[%emt 0:00:30]} 4. g3 {[%emt 0:00:30]} Bb4+ {[%emt 0:00:30]} 5. Bd2 {[%emt 0:00:30]} Be7 {[%emt 0:00:30]} 6. Bg2 {[%emt 0:00:30]} c6 {[%emt 0:00:30]} 7. O-O {[%emt 0:00:30]} O-O {[%emt 0:02:30]} 8. Qc2 {[%emt 0:01:30]} b6 {[%emt 0:00:30]} 9. Bf4 {[%emt 0:01:30]} Bb7 {[%emt 0:01:30]} 10. Nc3 {[%emt 0:01:30]} Nbd7 {[%emt 0:05:30]} 11. Rfd1 {[%emt 0:02:30]} Rc8 {[%emt 0:08:30]} 12. Ne5 {[%emt 0:02:30]} dxc4 {[%emt 0:20:30]} 13. Nxc4 {[%emt 0:00:30]} Nd5 {[%emt 0:07:30]} 14. Nd6 {[%emt 0:01:30]} Bxd6 {[%emt 0:03:30]} 15. Bxd6 {[%emt 0:00:30]} Re8 {[%emt 0:00:30]} 16. e4 {[%emt 0:03:30]} Nc7 {[%emt 0:08:30]} 17. a4 {[%emt 0:10:30]} Nf6 {[%emt 0:01:30]} 18. Ba3 {[%emt 0:01:30]} Na6 {[%emt 0:09:30]} 19. e5 {[%emt 0:03:30]} Nd5 {[%emt 0:01:30]} 20. Ne4 {[%emt 0:00:30]} Rb8 {[%emt 0:05:30]} 21. Nd6 {[%emt 0:00:30]} Re7 {[%emt 0:00:55]} 22. Qc4 {[%emt 0:03:30]} b5 {[%emt 0:05:29]} 23. axb5 {[%emt 0:03:30]} cxb5 {[%emt 0:00:22]} 24. Qxb5 {[%emt 0:00:30]} Bc8 {[%emt 0:03:30]} 25. Qa4 {[%emt 0:04:30]} Ndb4 {[%emt 0:02:43]} 26. Nxc8 {[%emt 0:16:30]} Qxc8 {[%emt 0:00:30]} 27. Bf1 {[%emt 0:00:30]} Rd7 {[%emt 0:00:30]} 28. Rdc1 {[%emt 0:00:30]} Qb7 {[%emt 0:00:30]} 29. Bxa6 {[%emt 0:02:30]} Nxa6 {[%emt 0:05:35]} 30. Bd6 {[%emt 0:00:30]} Rxd6 {[%emt 0:01:42]} 31. exd6 {[%emt 0:00:00]} Nb4 {[%emt 0:00:30]} 32. Qxa7 {[%emt 0:01:00]} Qb5 {[%emt 0:00:44]} 33. Ra5 {[%emt 0:01:30]} Qe8 {[%emt 0:00:30]} 34. d7 {[%emt 0:00:00]} Qd8 {[%emt 0:00:55]} 35. Qxb8 {[%emt 0:00:00]} Qxb8 {[%emt 0:00:30]} 36. Rc8+ {[%emt 0:00:30]} Qxc8 {[%emt 0:00:00]} 1-0

[Event "FIDE World Cadets GU12 2022"]
[Site "Batumi"]
[Date "2022.09.21"]
[Round "6.10"]
[White "Abramkina, Veranika"]
[Black "Gan, Emily Cathay"]
[Result "1-0"]
[ECO "B07"]
[WhiteElo "1445"]
[BlackElo "1550"]
[Annotator "NA RC COMBH"]
[PlyCount "37"]
[EventDate "2022.09.16"]
[EventType "swiss"]
[EventCountry "GEO"]
[SourceTitle "playchess.com"]
[Source "ChessBase"]
[SourceQuality "1"]
[TimeControl "5400+30"]

1. d4 {[%emt 0:01:00]} Nf6 {[%emt 0:01:00]} 2. Nf3 {[%emt 0:00:30]} g6 {[%emt 0:00:30]} 3. Nbd2 {[%emt 0:00:30]} Bg7 {[%emt 0:00:30]} 4. e4 {[%emt 0:00:30]} d6 {[%emt 0:00:30]} 5. Be2 {[%emt 0:00:30]} O-O {[%emt 0:00:30]} 6. O-O {[%emt 0:00:00]} e5 {[%emt 0:00:30]} 7. dxe5 {[%emt 0:00:00]} dxe5 {[%emt 0:00:30]} 8. Nxe5 {[%emt 0:00:00]} Nxe4 {[%emt 0:00:30]} 9. Nxf7 {[%emt 0:00:00]} Rxf7 {[%emt 0:15:30]} 10. Nxe4 {[%emt 0:00:00]} Rd7 {[%emt 0:32:30]} 11. Bc4+ {[%emt 0:01:00]} Kh8 {[%emt 0:06:30]} 12. Ng5 {[%emt 0:03:30]} Qe8 {[%emt 0:00:30]} 13. Qf3 {[%emt 0:00:30]} h6 {[%emt 0:04:30]} 14. Ne6 {[%emt 0:02:30]} Nc6 {[%emt 0:03:30]} 15. Nxg7 {[%emt 0:00:30]} Rxg7 {[%emt 0:02:30]} 16. Bxh6 {[%emt 0:01:30]} Re7 {[%emt 0:00:30]} 17. Qf6+ {[%emt 0:02:30]} Kh7 {[%emt 0:00:30]} 18. Bf8 {[%emt 0:00:30]} Rd7 {[%emt 0:01:30]} 19. Qh4# {[%emt 0:00:30]} 1-0

[Event "FIDE World Cadets GU12 2022"]
[Site "Batumi"]
[Date "2022.09.21"]
[Round "6.11"]
[White "Krkyasharyan, Sona"]
[Black "Khafizova, Diana"]
[Result "0-1"]
[ECO "A41"]
[WhiteElo "1484"]
[BlackElo "1411"]
[Annotator "NA RC COMBH"]
[PlyCount "92"]
[EventDate "2022.09.16"]
[EventType "swiss"]
[EventCountry "GEO"]
[SourceTitle "playchess.com"]
[Source "ChessBase"]
[SourceQuality "1"]
[TimeControl "5400+30"]

1. d4 {[%emt 0:01:00]} d6 {[%emt 0:01:00]} 2. c4 {[%emt 0:00:30]} e5 {[%emt 0:00:00]} 3. d5 {[%emt 0:01:30]} f5 {[%emt 0:00:00]} 4. Nc3 {[%emt 0:00:30]} Nf6 {[%emt 0:00:30]} 5. Nf3 {[%emt 0:00:30]} g6 {[%emt 0:00:30]} 6. b3 {[%emt 0:00:30]} Bg7 {[%emt 0:00:00]} 7. Bb2 {[%emt 0:00:30]} O-O {[%emt 0:02:00]} 8. e3 {[%emt 0:00:30]} Nbd7 {[%emt 0:00:30]} 9. Be2 {[%emt 0:00:30]} Nc5 {[%emt 0:01:30]} 10. O-O {[%emt 0:02:30]} a5 {[%emt 0:01:30]} 11. a3 {[%emt 0:00:30]} Bd7 {[%emt 0:01:30]} 12. b4 {[%emt 0:00:30]} Nce4 {[%emt 0:02:30]} 13. Nxe4 {[%emt 0:03:30]} Nxe4 {[%emt 0:00:30]} 14. Nd2 {[%emt 0:00:30]} Nxd2 {[%emt 0:01:30]} 15. Qxd2 {[%emt 0:00:30]} b6 {[%emt 0:02:30]} 16. Rfc1 {[%emt 0:00:30]} f4 {[%emt 0:03:30]} 17. e4 {[%emt 0:02:30]} f3 {[%emt 0:02:30]} 18. Bxf3 {[%emt 0:00:30]} Rxf3 {[%emt 0:00:30]} 19. gxf3 {[%emt 0:00:30]} Qh4 {[%emt 0:00:30]} 20. Re1 {[%emt 0:09:30]} Bh6 {[%emt 0:08:30]} 21. Qd3 {[%emt 0:01:30]} Bh3 {[%emt 0:01:30]} 22. f4 {[%emt 0:17:30]} Bxf4 {[%emt 0:01:30]} 23. Re3 {[%emt 0:01:30]} Bxh2+ {[%emt 0:03:30]} 24. Kh1 {[%emt 0:00:00]} Bg4 {[%emt 0:03:30]} 25. Kg2 {[%emt 0:01:00]} Rf8 {[%emt 0:03:30]} 26. Rf1 {[%emt 0:04:30]} Bf4 {[%emt 0:02:30]} 27. Rh3 {[%emt 0:07:30]} Bxh3+ {[%emt 0:09:30]} 28. Qxh3 {[%emt 0:00:30]} Qxh3+ {[%emt 0:00:30]} 29. Kxh3 {[%emt 0:00:00]} axb4 {[%emt 0:00:30]} 30. axb4 {[%emt 0:00:00]} Bd2 {[%emt 0:00:30]} 31. b5 {[%emt 0:00:00]} Rf3+ {[%emt 0:00:30]} 32. Kg2 {[%emt 0:00:00]} Rb3 {[%emt 0:00:30]} 33. Bc1 {[%emt 0:00:30]} Bxc1 {[%emt 0:00:30]} 34. Rxc1 {[%emt 0:00:30]} Kg7 {[%emt 0:00:00]} 35. f3 {[%emt 0:01:30]} Kf6 {[%emt 0:00:00]} 36. Kg3 {[%emt 0:00:00]} Kg5 {[%emt 0:01:30]} 37. Rc2 {[%emt 0:02:00]} h5 {[%emt 0:00:30]} 38. Rc1 {[%emt 0:00:30]} h4+ {[%emt 0:01:30]} 39. Kg2 {[%emt 0:00:30]} Kf4 {[%emt 0:00:00]} 40. Rf1 {[%emt 0:00:30]} h3+ {[%emt 0:01:00]} 41. Kh2 {[%emt 0:00:30]} Rxf3 {[%emt 0:00:30]} 42. Ra1 {[%emt 0:00:30]} Rc3 {[%emt 0:00:00]} 43. Ra7 {[%emt 0:00:30]} Rxc4 {[%emt 0:00:00]} 44. Kxh3 {[%emt 0:00:00]} g5 {[%emt 0:00:00]} 45. Ra8 {[%emt 0:00:00]} Rc3+ {[%emt 0:00:00]} 46. Kg2 {[%emt 0:00:30]} Kxe4 {[%emt 0:00:30]} 0-1

[Event "FIDE World Cadets GU12 2022"]
[Site "Batumi"]
[Date "2022.09.21"]
[Round "6.13"]
[White "Preobrazhenskaya, Diana"]
[Black "Shimanskaia, Tatiana"]
[Result "1-0"]
[ECO "B92"]
[WhiteElo "1994"]
[BlackElo "1353"]
[Annotator "TA"]
[PlyCount "69"]
[EventDate "2022.09.16"]
[EventType "swiss"]
[EventCountry "GEO"]
[SourceTitle "playchess.com"]
[Source "ChessBase"]
[SourceQuality "1"]
[TimeControl "5400+30"]

{[%evp 19,69,-33,-16,-23,-20,-46,-47,-66,-15,-22,-4,-8,0,-2,-28,-20,91,94,86,81,470,197,193,109,101,77,716,708,687,682,1025,1026,1008,1004,996,989,939,922,1063,1058,929,851,1064,1052,1329,711,711,157,688,679,679,679]} 1. e4 {[%emt 0:01:00]} c5 {[%emt 0:01:00]} 2. Nf3 {[%emt 0:00:30]} d6 {[%emt 0:00:30]} 3. d4 {[%emt 0:00:30]} cxd4 {[%emt 0:00:30]} 4. Nxd4 {[%emt 0:00:30]} Nf6 {[%emt 0:00:30]} 5. Nc3 {[%emt 0:00:30]} a6 {[%emt 0:00:30]} 6. Be2 {[%emt 0:00:30]} e5 {[%emt 0:00:30]} 7. Nb3 {[%emt 0:00:00]} Be7 {[%emt 0:00:00]} 8. O-O {[%emt 0:00:00]} O-O {[%emt 0:00:00]} 9. Kh1 {[%emt 0:00:00]} b6 {[%emt 0:00:00]} 10. f4 {[%emt 0:05:00]} Bb7 {[%emt 0:07:00]} 11. Bf3 {[%emt 0:01:30] B92: Sicilian Najdorf: 6 Be2.} Nbd7 {[%emt 0:07:30]} 12. Qe1 {[%emt 0:09:30]} Re8 {[%emt 0:08:30] [#]} 13. f5 $146 {[%emt 0:17:30] Black is slightly better.} ({Predecessor:} 13. Qg3 b5 14. a3 Rc8 15. Be3 a5 16. fxe5 dxe5 17. Bh6 g6 18. Qf2 b4 19. axb4 axb4 {0-1 (28) Wallace,J (2370)-Dzevlan,M (2395) Stockholm 1996}) 13... d5 {[%emt 0:14:30]} ({Better is} 13... b5 $15) 14. exd5 $11 {[%emt 0:09:30][%cal Od5d6] Black must now prevent d6!} Bb4 {[%emt 0:03:30]} (14... e4 $5 15. Nxe4 (15. Bxe4 $2 Bb4 $19) 15... Bxd5 $11) 15. Qg3 {[%emt 0:07:30]} e4 {[%emt 0:10:30]} (15... Bxc3 16. Bh6 g6 17. bxc3 $14) 16. Bh6 {[%emt 0:04:30][%csl Gh6][%cal Rg3g7]} Bf8 {[%emt 0:01:30]} 17. Be2 {[%emt 0:03:30]} Nxd5 {[%emt 0:08:30]} (17... b5 $11) 18. Nxd5 $16 {[%emt 0:01:30]} Bxd5 {[%emt 0:00:30]} 19. Rad1 $40 {[%emt 0:07:30][%mdl 128] White has strong attack. White is much more active.} Bxb3 {[%emt 0:13:30][%mdl 8192]} (19... Qb8 $16 {is tougher.}) 20. Bxg7 {[%emt 0:13:56]} ({Not} 20. cxb3 Qb8 $14) (20. Rxd7 $142 Qxd7 21. Bxg7) 20... Bxg7 $18 {[%emt 0:01:56]} 21. Rxd7 {[%emt 0:02:35]} (21. f6 $1 $18 Qxf6 22. Rxf6 Nxf6 23. axb3 (23. cxb3 e3 $18)) 21... Qf6 $16 {[%emt 0:00:17]} (21... Qxd7 $2 {gets mated.} 22. f6) 22. Qxb3 {[%emt 0:00:50][%cal Od7f7] Hoping for Rxf7!} Red8 $2 {[%emt 0:02:44][%mdl 8192] [#]} (22... b5 $16) 23. Rxf7 $3 $18 {[%emt 0:03:35][%mdl 512]} Qxf7 {[%emt 0:04:28]} 24. Bc4 {[%emt 0:00:05]} Rf8 {[%emt 0:00:33]} 25. f6 {[%emt 0:03:29]} Bh6 {[%emt 0:02:15]} 26. Qg3+ {[%emt 0:01:44][%mdl 64] Deflection} Kh8 {[%emt 0:00:30]} 27. Bxf7 {[%emt 0:00:30]} Rxf7 {[%emt 0:00:30]} 28. Qh4 {[%emt 0:00:29][%csl LRe4,LRh6]} Bf8 {[%emt 0:04:54]} 29. Qxe4 {[%emt 0:00:07]} Rd8 {[%emt 0:00:43]} 30. Qe6 {[%emt 0:01:30]} Rfd7 {[%emt 0:00:25]} 31. f7 {[%emt 0:00:47] White wants to mate with Qe5+.} Rd1 {[%emt 0:01:21]} 32. Qf6+ {[%emt 0:00:54]} Bg7 {[%emt 0:00:06]} 33. f8=Q+ {[%emt 0:01:37]} Rxf8 {[%emt 0:00:30]} 34. Qxf8+ {[%emt 0:00:30]} Bxf8 {[%emt 0:00:30][%cal Rd1f1]} 35. Rxd1 {[%emt 0:00:00] Weighted Error Value: White=0.53/Black=0.60} 1-0

[Event "FIDE World Cadets GU12 2022"]
[Site "Batumi"]
[Date "2022.09.21"]
[Round "6.14"]
[White "Assylkhan, Asiya"]
[Black "Aravindakshan, Sahana"]
[Result "1-0"]
[ECO "A48"]
[WhiteElo "1424"]
[BlackElo "1776"]
[Annotator "NA RC COMBH"]
[PlyCount "68"]
[EventDate "2022.09.16"]
[EventType "swiss"]
[EventCountry "GEO"]
[SourceTitle "playchess.com"]
[Source "ChessBase"]
[SourceQuality "1"]
[TimeControl "5400+30"]

1. d4 {[%emt 0:01:00]} Nf6 {[%emt 0:01:00]} 2. Bf4 {[%emt 0:00:30]} g6 {[%emt 0:00:30]} 3. c3 {[%emt 0:00:30]} Bg7 {[%emt 0:00:30]} 4. h3 {[%emt 0:00:30]} O-O {[%emt 0:00:30]} 5. Nd2 {[%emt 0:00:30]} d6 {[%emt 0:00:30]} 6. e4 {[%emt 0:00:30]} Nbd7 {[%emt 0:00:00]} 7. Ngf3 {[%emt 0:00:00]} Re8 {[%emt 0:00:00]} 8. e5 {[%emt 0:00:00]} dxe5 {[%emt 0:04:30]} 9. dxe5 {[%emt 0:00:00]} Nd5 {[%emt 0:01:30]} 10. Bh2 {[%emt 0:01:00]} f6 {[%emt 0:07:30]} 11. Nc4 {[%emt 0:19:30]} c6 {[%emt 0:02:30]} 12. a4 {[%emt 0:02:30]} fxe5 {[%emt 0:03:30]} 13. Ncxe5 {[%emt 0:00:30]} Nxe5 {[%emt 0:00:30]} 14. Nxe5 {[%emt 0:00:30]} Rf8 {[%emt 0:03:30]} 15. Bc4 {[%emt 0:03:30]} Be6 {[%emt 0:07:30]} 16. O-O {[%emt 0:00:30]} Qe8 {[%emt 0:04:30]} 17. Qb3 {[%emt 0:03:30]} Qc8 {[%emt 0:08:30]} 18. Rfe1 {[%emt 0:06:30]} Kh8 {[%emt 0:08:30]} 19. Re2 {[%emt 0:03:30]} Bg8 {[%emt 0:02:30]} 20. Rae1 {[%emt 0:02:30]} e6 {[%emt 0:07:30]} 21. Qc2 {[%emt 0:03:30]} Ne7 {[%emt 0:02:30]} 22. Re4 {[%emt 0:04:30]} Nf5 {[%emt 0:02:30]} 23. Nf3 {[%emt 0:01:30]} e5 {[%emt 0:07:30]} 24. Bxg8 {[%emt 0:00:30]} Kxg8 {[%emt 0:00:30]} 25. Qb3+ {[%emt 0:00:30]} Kh8 {[%emt 0:00:30]} 26. Nxe5 {[%emt 0:00:30]} Qe8 {[%emt 0:02:30]} 27. R4e2 {[%emt 0:17:30]} b6 {[%emt 0:02:30]} 28. Rd2 {[%emt 0:08:30]} h6 {[%emt 0:07:42]} 29. Qc4 {[%emt 0:02:37]} Kh7 {[%emt 0:01:45]} 30. Qxc6 {[%emt 0:01:56]} Bxe5 {[%emt 0:01:19]} 31. Rd7+ {[%emt 0:00:07]} Ng7 {[%emt 0:01:31]} 32. Rxe5 {[%emt 0:00:24]} Qc8 {[%emt 0:05:22]} 33. Qxc8 {[%emt 0:00:41]} Raxc8 {[%emt 0:00:30]} 34. Ree7 {[%emt 0:00:30]} Rg8 {[%emt 0:01:14]} 1-0